bitfinex/quotes_ETHUSD_20241212
["timestamp","ask_amount","ask_price","bid_price","bid_amount"]
[1733981022215,0.03545426,3915.9,3915.2,0.66392258]
[1733981022361,0.03545426,3915.9,3915.0,0.66400072]
[1733981022783,0.03545426,3915.9,3914.8,3.8009]
[1733981023556,0.13199651,3915.9,3914.8,3.8009]
[1733981024183,2.68568651,3915.9,3914.7,0.01329682]
[1733981025406,2.55403,3915.4,3914.7,0.01329682]
[1733981025613,2.55415,3915.2,3914.7,0.01329682]
[1733981025899,0.29078319,3915.1,3914.7,0.01329682]
[1733981026500,0.09654225,3915.0,3914.7,0.01329682]
[1733981026677,0.13190687,3915.0,3914.7,0.01329682]
[1733981029029,0.09654225,3914.9,3913.8,3.8009]
[1733981029197,0.09654225,3914.9,3913.8,0.8009]
[1733981029402,0.0353575,3914.8,3913.9,3.0]
[1733981029599,0.09654225,3914.9,3913.9,3.0]
[1733981029950,0.0353575,3914.8,3913.9,3.0]
[1733981030584,0.0353575,3914.8,3913.8,0.8009]
[1733981030895,0.30397548,3914.8,3913.8,0.8009]
[1733981031099,0.23830631,3914.7,3913.8,0.8009]
[1733981031413,0.03478954,3914.7,3913.8,0.8009]
[1733981031787,2.65088225,3914.9,3913.8,0.8009]
[1733981031986,2.58932597,3914.6,3913.5,0.752]
[1733981032182,0.29241709,3914.5,3913.5,0.752]
[1733981032387,0.03478241,3914.5,3913.5,0.752]
[1733981034731,2.68593466,3914.5,3913.5,0.752]
[1733981035350,0.23852155,3914.4,3913.5,0.752]
[1733981035516,0.23852155,3914.3,3913.5,0.752]
[1733981035716,0.03429722,3914.3,3913.5,0.752]
[1733981036138,2.65115225,3914.5,3913.5,0.752]
[1733981036338,0.03429366,3914.2,3913.5,0.752]
[1733981036648,0.0342901,3914.1,3913.3,3.752]
[1733981036812,0.23846911,3914.3,3913.3,3.752]
[1733981037016,0.03429366,3914.2,3913.3,3.752]
[1733981037217,2.65123225,3914.4,3913.3,3.752]
[1733981037452,0.26512323,3914.3,3913.3,3.752]
[1733981037686,2.85415045,3914.3,3912.9,3.05203]
[1733981037887,0.23844246,3914.2,3913.1,2.29996]
[1733981038190,0.26512323,3914.3,3913.1,2.29996]
[1733981038352,0.2383716,3914.2,3913.1,2.29996]
[1733981038684,0.03429366,3914.2,3913.1,2.29996]
[1733981038886,0.09654225,3914.4,3913.0,3.0]
[1733981039115,0.0342901,3914.1,3913.4,2.29978]
[1733981039321,0.09654225,3914.4,3913.4,2.29978]
[1733981039516,0.03428653,3914.0,3913.4,2.29978]
[1733981040006,0.03428297,3913.9,3913.4,0.229978]
[1733981040225,0.03428297,3913.9,3913.8,2.29955]
[1733981040435,0.09654225,3914.4,3914.3,2.29926]
[1733981040567,0.23828074,3915.2,3914.4,0.752]
[1733981040770,0.23823915,3915.8,3914.6,3.0]
[1733981040995,0.09654225,3915.9,3914.7,0.02554153]
[1733981040996,0.23823915,3915.7,3914.7,0.02554153]
[1733981041321,0.23823915,3915.6,3914.9,2.29886]
[1733981041599,0.23823915,3915.5,3914.9,2.29886]
[1733981041817,0.03293274,3915.6,3914.9,2.29886]
[1733981042027,0.03292562,3915.4,3914.9,2.29886]
[1733981042322,0.03292206,3915.3,3914.9,2.29886]
[1733981042540,0.36155348,3915.9,3914.9,2.29886]
[1733981042692,0.03291849,3915.2,3914.9,2.29886]
[1733981043019,0.23822747,3915.7,3914.9,2.29886]
[1733981043221,0.23822747,3915.6,3914.9,2.29886]
[1733981043523,0.23822747,3915.5,3914.9,2.29886]
[1733981043669,0.03292918,3915.5,3914.9,2.29886]
[1733981044021,0.09654225,3915.9,3914.9,2.29886]
[1733981044223,0.23824674,3915.8,3914.9,2.29886]
[1733981044427,0.23824674,3915.7,3914.9,2.29886]
[1733981044714,0.23824674,3915.6,3914.9,2.29886]
[1733981044923,0.23824674,3915.5,3914.9,2.29886]
[1733981045098,0.09654225,3915.7,3914.9,2.29886]
[1733981045316,0.23826429,3915.6,3914.9,2.29886]
[1733981045516,0.23826429,3915.5,3914.9,2.29886]
[1733981045717,0.09654225,3915.7,3914.9,2.29886]
[1733981046024,0.03336335,3915.4,3914.9,2.29886]
[1733981046223,0.09654225,3915.7,3914.9,2.29886]
[1733981046523,0.27167721,3915.6,3914.8,2.29896]
[1733981046828,0.09654225,3915.7,3915.0,2.29883]
[1733981046999,0.23829712,3915.6,3915.0,2.29883]
[1733981047208,0.09654225,3915.7,3915.0,2.29883]
[1733981047596,0.09654225,3915.6,3915.0,2.29883]
[1733981049104,0.09654225,3915.6,3914.7,0.00286697]
[1733981049326,0.09654225,3915.6,3914.8,5.29894]
[1733981049628,0.09654225,3915.6,3914.9,2.29889]
[1733981050233,0.09654225,3915.6,3914.7,1.19539312]
[1733981050414,3.06105166,3916.5,3915.2,2.29872]
[1733981050415,0.33487429,3916.3,3915.2,2.29872]
[1733981050713,0.27172388,3916.2,3915.2,2.29872]
[1733981050943,0.23833204,3916.1,3915.2,2.29872]
[1733981051147,0.03427533,3916.1,3915.2,2.29872]
[1733981051309,0.03427533,3916.1,3915.0,1.88323363]
[1733981051513,0.29216061,3916.2,3915.3,2.29867]
[1733981051697,0.23828238,3916.1,3915.1,3.0]
[1733981051898,0.29216061,3916.2,3915.2,2.29872]
[1733981052103,0.23828922,3916.1,3915.2,2.29872]
[1733981052304,0.23828922,3916.0,3915.2,2.29872]
[1733981052498,0.23828922,3916.1,3915.2,2.29872]
[1733981052766,0.29216061,3916.2,3915.2,2.29872]
[1733981052966,0.56676405,3916.1,3915.2,2.29872]
[1733981053200,0.23828243,3916.0,3915.2,2.29872]
[1733981053403,0.23827624,3916.0,3915.2,2.29872]
[1733981053622,0.03426821,3915.9,3915.2,2.29872]
[1733981054084,0.0331259,3915.8,3915.2,2.29872]
[1733981054283,0.39074854,3916.1,3915.2,2.29872]
[1733981054590,0.03313302,3916.0,3915.2,2.29872]
[1733981054932,0.03313302,3916.0,3915.1,3.0]
[1733981054933,0.03313302,3916.0,3915.3,2.29865]
[1733981055510,0.09654225,3916.1,3915.3,2.29865]
[1733981055908,4.6884704,3917.2,3915.3,2.29865]
[1733981055909,3.2035296,3917.8,3916.3,0.8164]
[1733981056135,3.7374512,3920.4,3918.3,2.29689]
[1733981056429,1.48480298,3920.9,3918.3,2.29689]
[1733981056430,1.16714512,3920.3,3920.2,2.82893042]
[1733981056621,1.16714512,3920.3,3918.6,3.8164]
[1733981056622,0.7934,3920.3,3919.0,2.29648]
[1733981056778,0.25,3921.0,3919.5,1.59176398]
[1733981056986,0.13042334,3921.4,3919.6,2.11074427]
[1733981056987,0.25,3920.8,3919.6,2.11074427]
[1733981057285,2.55112,3919.9,3919.3,2.12627954]
[1733981057496,0.255112,3919.8,3918.7,3.89010641]
[1733981057783,2.806292,3919.8,3918.8,0.1031906]
[1733981058000,2.55118,3919.8,3918.7,2.82893042]
[1733981058925,2.55118,3919.8,3918.8,0.10305346]
[1733981059121,2.54831303,3919.8,3918.7,2.82893042]
[1733981059619,2.55124,3919.7,3918.7,2.82893042]
[1733981059819,0.3743,3920.1,3918.7,2.82893042]
[1733981060117,0.55,3920.0,3918.7,2.82893042]
[1733981060905,0.55,3920.0,3919.1,2.82893042]
[1733981061083,3.10104,3920.0,3919.1,2.82893042]
[1733981061289,0.3755416,3919.9,3919.1,2.82893042]
[1733981061489,0.55,3920.0,3919.1,2.82893042]
[1733981061806,2.5511,3919.9,3919.1,2.82893042]
[1733981061983,2.5513,3919.6,3919.1,2.82893042]
[1733981062391,2.55111,3919.9,3919.1,2.82893042]
[1733981062588,0.347541,3919.8,3919.1,2.82893042]
[1733981063123,0.55,3920.0,3919.1,2.82893042]
[1733981063627,0.55,3920.0,3918.4,2.82893042]
[1733981063786,0.55,3920.0,3918.5,0.10271683]
[1733981064007,0.55,3920.0,3918.6,0.10271683]
[1733981064214,0.55,3920.0,3918.4,2.82893042]
[1733981064408,0.55,3920.0,3918.5,0.1027209]
[1733981064612,0.55,3920.0,3918.6,0.1027209]
[1733981064810,0.55,3920.0,3918.7,0.1027209]
[1733981065000,0.55,3920.0,3918.4,2.82893042]
[1733981065202,2.55116,3919.8,3918.5,0.10270331]
[1733981065396,0.310116,3919.7,3918.6,0.10270331]
[1733981065627,0.310116,3919.7,3918.7,0.10270331]
[1733981065793,0.310116,3919.7,3918.3,2.29689]
[1733981065995,0.310116,3919.7,3918.4,0.26698856]
[1733981066316,0.2861276,3919.6,3918.5,0.26703428]
[1733981066643,0.2861276,3919.6,3918.6,0.1026818]
[1733981066796,0.2861276,3919.6,3918.7,0.1026818]
[1733981066997,0.2861276,3919.6,3918.8,0.1026818]
[1733981067207,0.2861276,3919.6,3918.3,2.29689]
[1733981067507,0.28372876,3919.5,3918.4,0.26709855]
[1733981067726,2.55116,3919.8,3918.5,0.26709855]
[1733981067899,2.55116,3919.8,3918.6,0.1027241]
[1733981068104,2.55116,3919.8,3918.7,0.1027241]
[1733981068303,0.310116,3919.7,3918.8,0.1027241]
[1733981068624,0.310116,3919.7,3918.9,0.1027241]
[1733981068788,0.310116,3919.7,3918.4,2.29683]
[1733981068993,0.310116,3919.7,3918.5,0.26720189]
[1733981069197,2.55123,3919.7,3918.6,0.26720189]
[1733981069444,2.55123,3919.7,3918.7,0.26720189]
[1733981069646,0.02836092,3919.6,3918.8,0.10276385]
[1733981069795,0.02836092,3919.6,3918.9,0.10276385]
[1733981070000,0.02836092,3919.6,3919.0,0.10276385]
[1733981070200,2.5511,3919.9,3918.4,2.29684]
[1733981070453,0.02835737,3919.5,3918.5,0.4730083]
[1733981070599,0.3743,3920.1,3918.7,0.7604]
[1733981070797,0.38042334,3921.4,3918.7,0.7604]
[1733981070798,0.02743623,3919.4,3918.8,3.0]
[1733981071048,0.02743623,3919.4,3918.7,0.7604]
[1733981071049,0.3743,3920.5,3918.9,1.0784683]
[1733981071191,0.3743,3920.5,3919.1,2.29638]
[1733981071394,0.3743,3920.5,3918.8,3.0]
[1733981071395,0.024702,3920.4,3919.2,0.308292]
[1733981071635,0.024702,3920.4,3919.5,2.29619]
[1733981071800,0.024702,3920.4,3919.6,0.26716786]
[1733981072010,0.024702,3920.4,3919.7,0.26716786]
[1733981072204,0.024702,3920.4,3919.5,2.29619]
[1733981072205,0.024702,3920.4,3919.8,0.26716786]
[1733981072406,0.024702,3920.4,3919.9,0.26704043]
[1733981072596,0.024702,3920.4,3919.8,0.7604]
[1733981072597,0.024702,3920.4,3920.0,0.2670452]
[1733981072929,0.02502531,3920.3,3920.1,0.10275076]
[1733981073141,0.57537004,3920.7,3920.2,0.10275076]
[1733981073426,0.57537004,3920.7,3919.8,0.7604]
[1733981073427,0.57537004,3920.7,3920.3,0.10275076]
[1733981073633,0.57537004,3920.7,3919.8,0.7604]
[1733981073933,3.12594004,3920.7,3919.9,0.26697714]
[1733981074233,0.37786005,3920.6,3920.0,0.26697714]
[1733981074405,0.37786005,3920.6,3920.1,0.26697714]
[1733981074594,0.63327305,3920.5,3920.2,0.10267741]
[1733981074790,0.63327305,3920.5,3919.8,0.7604]
[1733981074993,0.63327305,3920.5,3919.9,0.26705317]
[1733981075229,0.63327305,3920.5,3920.0,0.10270665]
[1733981075429,0.63327305,3920.5,3920.1,0.10270665]
[1733981075631,2.55058,3920.7,3920.2,0.10270665]
[1733981075823,2.55058,3920.7,3919.8,0.7604]
[1733981075824,2.55058,3920.7,3920.3,0.10270665]
[1733981076122,2.55058,3920.7,3919.8,0.7604]
[1733981076323,2.55058,3920.7,3919.9,0.26708438]
[1733981076624,2.55058,3920.7,3920.0,0.26708438]
[1733981076798,3.12602104,3920.6,3920.1,0.26708438]
[1733981077005,3.12602104,3920.6,3919.8,0.7604]
[1733981077006,3.12602104,3920.6,3920.2,0.10271865]
[1733981077225,3.12602104,3920.6,3920.3,0.10271865]
[1733981077431,3.12602104,3920.6,3920.4,0.10271865]
[1733981077633,0.59549515,3920.5,3919.8,0.7604]
[1733981077795,3.14619515,3920.5,3919.9,0.26723976]
[1733981077991,2.5507,3920.5,3920.0,0.26723976]
[1733981078292,2.55057,3920.7,3920.1,0.26723976]
[1733981078498,2.55057,3920.7,3919.8,0.7604]
[1733981078499,2.55057,3920.7,3920.2,0.26723976]
[1733981078757,0.57538004,3920.6,3920.3,0.10277841]
[1733981079054,0.57538004,3920.6,3920.4,0.10277841]
[1733981079192,0.57538004,3920.6,3920.5,0.10277841]
[1733981080534,0.81181547,3920.6,3919.6,0.205969]
[1733981080829,2.5509,3920.2,3919.5,0.26775855]
[1733981081041,2.5509,3920.2,3919.7,0.26775724]
[1733981081259,0.59548805,3920.5,3919.8,0.16478998]
[1733981081399,0.59548805,3920.5,3919.9,0.2677638]
[1733981081400,3.38015631,3920.4,3919.9,0.2677638]
[1733981081599,0.23660808,3920.3,3920.0,0.10297382]
[1733981081799,2.55097,3920.1,3919.1,0.17168722]
[1733981082049,2.55097,3920.1,3919.2,0.26792001]
[1733981082209,0.255097,3920.0,3919.3,0.26792001]
[1733981082403,3.04299372,3920.0,3919.4,0.26792001]
[1733981082715,2.55103,3920.0,3919.5,0.26792001]
[1733981082903,2.5511,3919.9,3919.6,0.26792001]
[1733981083100,2.5511,3919.9,3919.1,0.17168722]
[1733981083101,2.55149,3919.3,3919.1,0.17168722]
[1733981083324,0.49235956,3919.2,3919.1,0.17168722]
[1733981083539,0.49235956,3919.2,3919.1,0.44033164]
[1733981084037,0.49235956,3919.2,3919.1,0.44036375]
[1733981085030,0.51775993,3919.2,3919.1,0.44036375]
[1733981085428,0.51775993,3919.2,3919.1,0.61264043]
[1733981086138,2.55115,3919.8,3919.1,0.44036375]
[1733981086437,0.02455369,3919.2,3919.1,0.17168722]
[1733981086755,0.02418553,3919.2,3919.1,0.44130293]
[1733981086902,2.63115,3919.8,3919.1,0.17168722]
[1733981087239,3.12144559,3919.7,3919.1,0.17168722]
[1733981087727,0.02338741,3919.6,3919.1,0.17168722]
[1733981087922,0.08,3919.8,3919.1,0.17168722]
[1733981088126,0.02349317,3919.5,3919.1,0.17168722]
[1733981088322,2.55124,3919.7,3919.1,0.17168722]
[1733981088529,0.02346085,3919.4,3919.1,0.17168722]
[1733981088703,0.263124,3919.6,3919.1,0.17168722]
[1733981088905,0.0234644,3919.5,3919.1,0.17168722]
[1733981089339,2.63116,3919.8,3919.1,0.17168722]
[1733981089538,0.02346085,3919.4,3919.1,0.17168722]
[1733981089737,0.08,3919.5,3919.1,0.17168722]
[1733981089942,0.02345729,3919.3,3919.1,0.17168722]
[1733981090117,0.08,3919.5,3919.1,0.17168722]
[1733981090318,0.02345374,3919.2,3919.1,0.17168722]
[1733981090520,0.08,3919.5,3919.1,0.17168722]
[1733981090715,0.02345374,3919.2,3919.1,0.17168722]
[1733981090918,0.08,3919.5,3919.1,0.17168722]
[1733981091240,0.02345374,3919.2,3919.0,0.7604]
[1733981091445,0.08,3919.5,3919.0,0.7604]
[1733981091609,0.02350196,3919.1,3919.0,0.7604]
[1733981091811,0.08,3919.5,3919.0,0.7604]
[1733981092012,0.02350196,3919.1,3919.0,0.7604]
[1733981092519,0.08,3919.5,3919.0,0.7604]
[1733981092748,0.02350196,3919.1,3919.0,0.7604]
[1733981093050,2.63115,3919.8,3919.0,0.7604]
[1733981093233,3.26479475,3919.8,3919.0,0.7604]
[1733981093560,0.02352329,3919.7,3919.0,0.7604]
[1733981094755,2.57476329,3919.7,3919.0,0.7604]
[1733981096952,0.00691877,3919.7,3919.0,0.7604]
[1733981097138,0.71364475,3919.8,3919.0,0.7604]
[1733981097347,0.35425752,3919.7,3919.0,0.7604]
[1733981098027,2.55135,3919.5,3919.0,0.7604]
[1733981098230,0.23817926,3919.6,3919.0,0.7604]
[1733981098231,2.78959926,3919.4,3919.0,0.7604]
[1733981098440,0.23817926,3919.3,3919.0,0.7604]
[1733981098752,0.23817926,3919.2,3919.0,0.7604]
[1733981098925,0.23817926,3919.1,3919.0,0.7604]
[1733981099449,0.23817926,3919.1,3919.0,2.95217435]
[1733981099862,0.23817926,3919.1,3919.0,4.01335034]
[1733981100227,0.23817926,3919.1,3919.0,6.30125325]
[1733981100556,0.08,3919.8,3919.0,5.55224255]
[1733981100755,0.08,3919.8,3919.6,1.06221313]
[1733981100929,0.23816173,3919.7,3919.6,4.41199863]
[1733981101120,0.23816173,3919.7,3919.6,2.47151726]
[1733981101325,0.23816173,3919.7,3919.6,3.95404522]
[1733981101526,0.08,3919.8,3919.6,3.95404522]
[1733981101732,0.08,3920.3,3919.8,0.8283]
[1733981101940,0.08,3920.3,3920.1,2.65817558]
[1733981102138,0.08,3920.3,3920.2,6.6122208]
[1733981102338,0.08,3920.3,3920.2,3.95404522]
[1733981102641,0.08,3920.3,3920.2,6.07991741]
[1733981103943,0.31803686,3920.3,3920.2,6.07991741]
[1733981104164,0.31803686,3920.3,3920.2,3.26024964]
[1733981105565,0.08,3920.3,3920.2,3.26024964]
[1733981105874,0.31804262,3920.3,3920.2,2.19728675]
[1733981106250,0.31804262,3920.3,3920.2,3.26005209]
[1733981106433,0.60491688,3920.3,3920.2,2.19728675]
[1733981107261,0.60491688,3920.3,3919.9,1.06276534]
[1733981107568,0.23804262,3920.2,3920.0,2.19782488]
[1733981107737,2.63083,3920.3,3920.1,0.87912995]
[1733981107937,2.78895851,3920.2,3919.9,1.06276534]
[1733981108138,0.23805851,3920.1,3920.0,2.1985717]
[1733981108358,0.23805851,3920.1,3920.0,2.19888306]
[1733981109251,0.23806575,3920.1,3920.0,2.12765837]
[1733981109452,2.55045,3920.9,3920.1,0.7625]
[1733981109654,2.55045,3920.9,3920.4,1.06223484]
[1733981109853,2.55045,3920.9,3920.5,0.87955322]
[1733981110079,2.5503,3921.1,3920.6,3.26032832]
[1733981110288,2.5503,3921.1,3920.7,2.19809348]
[1733981110467,2.5503,3921.1,3920.8,2.19809348]
[1733981110665,2.5503,3921.1,3920.3,2.12446969]
[1733981110666,2.5503,3921.1,3920.9,0.87955322]
[1733981110873,2.5503,3921.1,3920.6,1.06223484]
[1733981111187,0.164813,3921.5,3920.7,2.19481783]
[1733981111380,0.59180134,3921.4,3920.8,2.19481783]
[1733981111580,2.55024,3921.2,3920.6,1.06223484]
[1733981111887,0.59180134,3921.4,3920.7,0.87777897]
[1733981112100,0.164813,3921.5,3920.6,0.7625]
[1733981112288,2.714863,3921.5,3920.8,0.7625]
[1733981112458,2.714863,3921.5,3920.9,0.87774798]
[1733981112797,2.714863,3921.5,3921.0,0.87730733]
[1733981112951,2.714863,3921.5,3920.8,1.82473484]
[1733981113156,2.714863,3921.5,3920.9,2.19313153]
[1733981113367,2.9863493,3921.5,3921.0,2.19312162]
[1733981113569,2.9863493,3921.5,3920.8,1.82473484]
[1733981113570,0.4362993,3921.5,3920.8,0.7625]
[1733981113767,2.55017,3921.3,3920.9,2.19256518]
[1733981114201,2.55017,3921.3,3920.8,0.7625]
[1733981114487,2.55017,3921.3,3920.9,0.87706541]
[1733981116292,2.5502,3921.3,3920.9,0.87706541]
[1733981116491,0.164813,3921.5,3920.5,1.06223484]
[1733981116492,2.82893042,3921.2,3920.5,1.06223484]
[1733981116655,0.28289304,3921.1,3920.1,0.7856]
[1733981116859,0.3743,3920.7,3920.1,0.7856]
[1733981117061,2.5507,3920.5,3919.8,1.84783484]
[1733981117262,2.8432,3920.5,3919.9,2.19227797]
[1733981117470,0.02336263,3920.4,3920.0,0.87691119]
[1733981117688,0.02336263,3920.4,3919.8,1.84783484]
[1733981117992,0.02336263,3920.4,3919.9,2.19227435]
[1733981118564,0.02336263,3920.4,3919.8,1.66250974]
[1733981118762,0.02336263,3920.4,3919.9,2.1921854]
[1733981118965,0.02336263,3920.4,3920.0,0.87690974]
[1733981119165,0.02336263,3920.4,3919.8,0.7856]
[1733981119379,0.02336263,3920.4,3919.9,2.19228305]
[1733981119762,2.57415263,3920.4,3919.9,2.19228305]
[1733981120421,2.55082,3920.3,3919.9,2.19228305]
[1733981120699,2.57417908,3920.3,3919.8,0.7856]
[1733981122333,2.55097,3920.1,3919.4,4.82893484]
[1733981122465,2.55097,3920.1,3919.5,2.19316518]
[1733981122672,0.02300923,3920.0,3919.5,2.19316518]
[1733981123386,2.57404923,3920.0,3919.5,2.19316518]
[1733981123711,0.39730923,3920.0,3919.1,1.82893484]
[1733981123881,0.39730923,3920.0,3919.2,2.19410335]
[1733981124074,0.39730923,3920.0,3919.1,0.7667]
[1733981124283,0.3743,3920.0,3919.2,0.87762292]
[1733981125288,2.55121,3919.7,3919.2,0.87762292]
[1733981125702,2.55121,3919.7,3919.1,0.7667]
[1733981125890,2.55121,3919.7,3919.2,2.19413363]
[1733981126089,2.55121,3919.7,3919.1,0.7667]
[1733981126292,2.55109,3919.9,3919.2,2.19394777]
[1733981126499,2.843629,3919.9,3919.2,2.19394777]
[1733981127324,2.55121,3919.7,3919.1,0.7667]
[1733981127483,0.292539,3919.9,3919.1,0.7667]
[1733981127484,0.292539,3919.9,3919.2,0.87764906]
[1733981127680,2.55129,3919.6,3919.1,0.7667]
[1733981127979,2.8594674,3919.6,3919.1,0.7667]
[1733981128181,0.3081774,3919.6,3919.1,0.7667]
[1733981129108,0.3081774,3919.6,3919.2,0.87764027]
[1733981129312,3.16329417,3920.0,3919.2,0.87764027]
[1733981129621,0.23797417,3919.9,3919.2,0.87764027]
[1733981129930,5.32,3921.8,3919.2,0.87764027]
[1733981129931,0.63171791,3920.3,3919.3,3.25598177]
[1733981130099,0.3743,3920.3,3919.4,1.93987511]
[1733981130300,2.55076,3920.4,3919.6,0.7667]
[1733981130549,0.3743,3920.6,3919.6,0.7667]
[1733981130550,2.92494,3920.6,3919.6,4.02268177]
[1733981130819,2.78870602,3920.5,3919.7,3.25598177]
[1733981131006,2.8670106,3920.5,3919.8,2.19374693]
[1733981131212,2.8670106,3920.5,3919.9,0.87764027]
[1733981131419,2.8670106,3920.5,3919.7,1.06223484]
[1733981131420,2.78877794,3920.4,3919.6,0.7667]
[1733981131586,2.55076,3920.4,3919.6,1.64413178]
[1733981131800,2.87489606,3920.4,3919.7,2.19357945]
[1733981132233,2.87489606,3920.4,3920.1,0.2488]
[1733981132750,0.32413606,3920.4,3920.1,0.2488]
[1733981132975,2.55084,3920.3,3920.1,0.2488]
[1733981135652,2.92497,3920.6,3920.1,0.2488]
[1733981135840,2.78870812,3920.5,3920.1,0.2488]
[1733981136027,0.23800812,3920.4,3920.1,0.2488]
[1733981136339,0.23800581,3920.4,3920.1,0.2488]
[1733981136539,0.31630058,3920.3,3920.1,0.2488]
[1733981136740,2.55078,3920.4,3920.1,0.2488]
[1733981137131,0.23801224,3920.3,3920.1,0.2488]
[1733981138042,2.78884224,3920.3,3920.1,0.2488]
[1733981138232,2.55083,3920.3,3920.1,0.2488]
[1733981138632,2.55072,3920.5,3920.1,0.2488]
[1733981138875,0.3743,3920.6,3920.1,0.2488]
[1733981138876,3.08129339,3920.4,3920.1,0.2488]
[1733981139077,0.23801139,3920.3,3920.1,0.2488]
[1733981139239,2.55062,3920.7,3920.1,0.2488]
[1733981139560,2.78865639,3920.6,3920.1,0.2488]
[1733981139766,0.51687203,3920.5,3920.1,0.2488]
[1733981139962,2.55071,3920.5,3920.1,0.2488]
[1733981140255,0.23800639,3920.4,3920.1,0.2488]
[1733981141137,2.55071,3920.5,3920.1,0.2488]
[1733981141343,0.23803583,3920.4,3920.1,0.2488]
[1733981141540,0.23803583,3920.3,3920.1,0.2488]
[1733981141855,0.23803583,3920.4,3920.1,0.2488]
[1733981142030,0.23803583,3920.3,3920.1,0.2488]
[1733981142229,0.23803583,3920.4,3920.1,0.2488]
[1733981142463,0.23803583,3920.3,3920.1,0.2488]
[1733981142655,2.78880583,3920.4,3920.1,0.2488]
[1733981142979,0.51691641,3920.3,3920.1,0.2488]
[1733981143188,0.23803583,3920.2,3920.1,0.2488]
[1733981143552,0.61233583,3920.2,3920.1,0.2488]
[1733981144371,0.61258879,3920.2,3920.1,0.2488]
[1733981144891,0.23828879,3920.2,3920.1,0.2488]
[1733981145192,0.54508973,3920.2,3920.1,0.2488]
[1733981145488,3.09597973,3920.2,3920.1,0.2488]
[1733981145783,2.78917879,3920.2,3920.1,0.2488]
[1733981147980,2.55089,3920.2,3920.1,0.2488]
[1733981148176,2.78946526,3920.2,3920.1,0.2488]
[1733981149292,3.16376526,3920.2,3920.1,0.2488]
[1733981149492,3.76303483,3920.2,3920.1,0.2488]
[1733981152216,2.55156,3919.2,3918.9,1.06223484]
[1733981152416,0.3743,3919.5,3919.0,2.19786326]
[1733981152719,2.78997051,3919.4,3918.8,1.82893484]
[1733981152917,0.23856051,3919.3,3918.9,2.19782805]
[1733981153099,0.23856051,3919.2,3919.0,0.87913122]
[1733981153416,0.23856051,3919.1,3918.8,0.7667]
[1733981153623,2.55149,3919.3,3918.9,2.1974098]
[1733981153787,0.23851316,3919.2,3919.0,0.87896392]
[1733981154117,2.55149,3919.3,3918.8,0.7667]
[1733981154326,0.23847023,3919.2,3918.9,2.19735865]
[1733981154536,2.55149,3919.3,3919.0,0.87894346]
[1733981154822,2.55169,3919.0,3918.7,1.06223484]
[1733981154997,2.5518,3918.8,3918.1,0.7623]
[1733981155200,2.55209,3918.4,3918.0,1.06223484]
[1733981155524,2.79060001,3918.3,3917.8,0.7623]
[1733981155725,2.82893042,3918.6,3917.8,0.7623]
[1733981155937,2.5522,3918.2,3917.8,0.7623]
[1733981156091,2.82893042,3918.6,3917.8,0.7623]
[1733981156384,2.55211,3918.4,3917.8,0.7623]
[1733981156797,0.31215404,3918.5,3917.8,0.7623]
[1733981156798,2.79031872,3918.3,3917.8,0.7623]
[1733981157016,2.55214,3918.3,3917.8,0.7623]
[1733981157216,0.31215404,3918.5,3917.8,0.7623]
[1733981157423,2.55221,3918.2,3917.8,0.7623]
[1733981158221,2.55226,3918.1,3917.8,0.7623]
[1733981158516,2.55211,3918.4,3917.8,0.7623]
[1733981158718,0.31215404,3918.5,3917.8,0.7623]
[1733981159118,2.55216,3918.3,3917.8,0.7623]
[1733981159319,2.55197,3918.6,3917.8,0.7623]
[1733981159521,2.55206,3918.4,3917.8,0.7623]
[1733981159822,2.55161,3919.1,3918.1,0.7623]
[1733981160024,2.55161,3919.1,3918.1,7.02048278]
[1733981160337,2.55161,3919.1,3917.8,1.59335226]
[1733981160338,2.55161,3919.1,3918.3,0.7623]
[1733981160490,2.55124,3919.7,3918.4,2.19565019]
[1733981160693,0.5584061,3919.6,3918.5,0.7623]
[1733981160891,2.55136,3919.5,3918.5,0.7623]
[1733981161331,2.55096,3920.1,3918.5,0.7623]
[1733981161491,0.23773576,3920.0,3918.7,0.7623]
[1733981161688,2.55123,3919.7,3918.8,0.7623]
[1733981161889,2.55123,3919.7,3918.9,0.87814886]
[1733981162847,2.55132,3919.6,3918.9,0.87814886]
[1733981163991,0.32032304,3920.2,3918.9,0.87814886]
[1733981164194,2.55121,3919.7,3918.9,0.87814886]
[1733981165028,0.65891592,3920.1,3918.9,0.87814886]
[1733981165212,2.55131,3919.6,3918.9,0.87814886]
[1733981166107,0.3743,3921.0,3919.3,0.7623]
[1733981166307,0.3743,3921.0,3919.5,0.7623]
[1733981166629,2.55049,3920.8,3919.5,0.7623]
[1733981166803,0.80914465,3920.7,3919.6,0.87814886]
[1733981167003,2.55077,3920.4,3919.6,0.87814886]
[1733981167221,2.82893042,3920.9,3919.5,0.7623]
[1733981167400,2.55107,3920.0,3919.5,0.7623]
[1733981168806,2.55084,3920.3,3919.5,0.7623]
[1733981175444,2.55102,3920.0,3919.5,0.7623]
[1733981176057,3.52355346,3920.8,3919.5,0.7623]
[1733981176058,2.5511,3919.9,3919.5,0.7623]
[1733981176262,2.80626,3919.8,3919.5,0.7623]
[1733981176559,2.55115,3919.8,3919.5,0.7623]
[1733981176905,2.55121,3919.7,3919.5,0.7623]
[1733981177449,0.3743,3920.0,3918.9,0.811]
[1733981177628,2.55135,3919.5,3918.9,0.811]
[1733981177931,2.55141,3919.4,3918.9,0.811]
[1733981178644,2.55141,3919.4,3919.3,0.00350635]
[1733981182928,3.04447297,3919.4,3919.3,0.00350635]
[1733981183925,3.41877297,3919.4,3919.3,0.00350635]
[1733981185644,3.180851,3919.4,3919.3,0.00350635]
[1733981185834,3.41881493,3919.4,3919.3,0.00350635]
[1733981188750,3.41900769,3919.4,3919.3,0.00350635]
[1733981191956,3.180851,3919.4,3919.3,0.00350635]
[1733981192159,3.41906628,3919.4,3919.3,0.00350635]
[1733981195193,3.41900776,3919.4,3919.3,0.00350635]
[1733981195701,3.41900776,3919.4,3919.3,6.35e-06]
[1733981199384,3.92220598,3919.4,3919.3,6.35e-06]
[1733981201392,3.92222933,3919.4,3919.3,6.35e-06]
[1733981201766,3.68404922,3919.4,3919.3,6.35e-06]
[1733981201966,3.92222947,3919.4,3919.3,6.35e-06]
[1733981205440,3.92250268,3919.4,3919.3,6.35e-06]